fUST/lending_fUST_20240715
["ID","MTS","AMOUNT","RATE_DAILY","PERIOD"]
[332135900,1720984244385,-500.0,0.00024931,2]
[332135901,1720984244394,-500.0,0.00024931,2]
[332135902,1720984244403,-502.42264814,0.00024931,2]
[332135903,1720984244412,-500.0,0.00024931,2]
[332135904,1720984244422,-151.0,0.00024931,7]
[332135906,1720984244431,-151.0,0.00024931,7]
[332135907,1720984244440,-500.0,0.00024931,2]
[332135909,1720984244449,-411.64932113,0.00024931,2]
[332135911,1720984244458,-500.0,0.00024931,2]
[332135913,1720984244467,-500.0,0.00024931,2]
[332135914,1720984244476,-500.0,0.00024931,2]
[332135915,1720984244485,-500.0,0.00024931,2]
[332135916,1720984244495,-7414.02,0.00024931,2]
[332135917,1720984244504,-500.0,0.00024931,2]
[332135918,1720984244513,-500.0,0.00024931,2]
[332135919,1720984244522,-500.0,0.00024931,2]
[332135920,1720984244531,-281.88072042,0.00024931,2]
[332135921,1720984244540,-500.0,0.00024931,2]
[332135922,1720984244549,-500.0,0.00024931,2]
[332135923,1720984244558,-500.0,0.00024931,2]
[332135924,1720984244567,-500.0,0.00024931,2]
[332135925,1720984244576,-500.0,0.00024931,2]
[332135926,1720984244586,-630.07583035,0.00024931,2]
[332135927,1720984244596,-500.0,0.00024931,2]
[332135928,1720984244606,-221.526488,0.00024931,7]
[332135929,1720984244616,-500.0,0.00024931,2]
[332135930,1720984244625,-500.0,0.00024931,2]
[332135931,1720984244634,-500.0,0.00024931,2]
[332135932,1720984244643,-500.0,0.00024931,2]
[332135933,1720984244652,-500.0,0.00024931,2]
[332135934,1720984244662,-221.526488,0.00024931,7]
[332135935,1720984244671,-500.0,0.00024931,2]
[332135936,1720984244680,-500.0,0.00024931,2]
[332135937,1720984244689,-500.0,0.00024931,2]
[332135938,1720984244697,-500.0,0.00024931,2]
[332135939,1720984244706,-717.62,0.00024931,4]
[332135940,1720984244715,-500.0,0.00024931,2]
[332135941,1720984244725,-500.0,0.00024931,2]
[332135942,1720984244734,-500.0,0.00024931,2]
[332135943,1720984244743,-251.23125357,0.00024931,2]
[332135944,1720984244752,-500.0,0.00024931,2]
[332135945,1720984244761,-1279.72,0.00024931,2]
[332135946,1720984244770,-500.0,0.00024931,2]
[332135947,1720984244779,-500.0,0.00024931,2]
[332135948,1720984244788,-500.0,0.00024931,2]
[332135949,1720984244798,-500.0,0.00024931,2]
[332135950,1720984244807,-500.0,0.00024931,2]
[332135951,1720984244815,-500.0,0.00024931,2]
[332135952,1720984244825,-866.27,0.00024931,2]
[332135953,1720984244834,-500.0,0.00024931,2]
[332135954,1720984244844,-500.0,0.00024931,2]
[332135955,1720984244853,-500.0,0.00024931,2]
[332135956,1720984244862,-645.05,0.00024931,2]
[332135957,1720984244872,-500.0,0.00024931,2]
[332135958,1720984244881,-4097.8,0.00024931,2]
[332135959,1720984244890,-475.1954234,0.00024931,2]
[332135960,1720984244900,-232.25753318,0.00024931,2]
[332135961,1720984244909,-500.0,0.00024931,2]
[332135962,1720984244919,-150.112233,0.00025,7]
[332135963,1720984244928,-150.112233,0.00025,3]
[332135964,1720984244938,-150.112233,0.00025,6]
[332135965,1720984244947,-150.112233,0.000251,8]
[332135966,1720984244957,-150.112233,0.000251,9]
[332135967,1720984244966,-1407.0,0.00025104,2]
[332135968,1720984244975,-260.62534725,0.00025125,2]
[332135969,1720984244984,-245.38974604,0.00025129,2]
[332135970,1720984244995,-153.0,0.00025151,2]
[332135971,1720984245006,-177.26682605,0.00025156,2]
[332135972,1720984245015,-150.112233,0.000252,6]
[332135973,1720984245024,-150.112233,0.000252,9]
[332135974,1720984245033,-150.112233,0.000252,5]
[332135975,1720984245044,-150.112233,0.000252,9]
[332135976,1720984245053,-150.112233,0.000252,8]
[332135977,1720984245062,-637.68250523,0.00025204,2]
[332135978,1720984245073,-165.2681664,0.00025205,2]
[332135979,1720984245084,-500.0,0.00025205,2]
[332135980,1720984245095,-500.0,0.00025205,2]
[332135981,1720984245104,-500.0,0.00025205,2]
[332135982,1720984245113,-500.0,0.00025205,2]
[332135983,1720984245122,-500.0,0.00025205,2]
[332135984,1720984245131,-500.0,0.00025205,2]
[332135985,1720984245141,-500.0,0.00025205,2]
[332135986,1720984245150,-500.0,0.00025205,2]
[332135987,1720984245159,-500.0,0.00025205,2]
[332135988,1720984245169,-1500.0,0.00025205,2]
[332135989,1720984245178,-512.02389022,0.00025205,2]
[332135990,1720984245187,-648.94,0.00025205,2]
[332135991,1720984245196,-500.0,0.00025205,2]
[332135992,1720984245206,-500.0,0.00025205,2]
[332135993,1720984245214,-500.0,0.00025205,2]
[332135994,1720984245223,-500.0,0.00025205,2]
[332135995,1720984245232,-500.0,0.00025205,2]
[332135996,1720984245242,-500.0,0.00025205,2]
[332135997,1720984245251,-500.0,0.00025205,2]
[332135998,1720984245260,-500.0,0.00025205,2]
[332135999,1720984245270,-664.23,0.00025205,2]
[332136000,1720984245279,-500.0,0.00025205,2]
[332136001,1720984245289,-500.0,0.00025205,2]
[332136002,1720984245298,-516.62501992,0.00025205,2]
[332136003,1720984245308,-500.0,0.00025205,2]
[332136004,1720984245317,-500.0,0.00025205,2]
[332136005,1720984245326,-500.0,0.00025205,2]
[332136006,1720984245335,-500.0,0.00025205,2]
[332136007,1720984245345,-500.0,0.00025205,2]
[332136008,1720984245354,-500.0,0.00025205,2]
[332136009,1720984245364,-500.0,0.00025205,2]
[332136010,1720984245374,-279.3196256,0.00025205,2]
[332136011,1720984245384,-500.0,0.00025205,2]
[332136012,1720984245393,-500.0,0.00025205,2]
[332136013,1720984245403,-500.0,0.00025205,2]
[332136014,1720984245412,-500.0,0.00025205,2]
[332136015,1720984245422,-500.0,0.00025205,2]
[332136016,1720984245431,-500.0,0.00025205,2]
[332136017,1720984245441,-602.08218057,0.00025205,2]
[332136018,1720984245450,-500.0,0.00025205,2]
[332136019,1720984245459,-500.0,0.00025205,2]
[332136020,1720984245469,-226.824644,0.00025205,7]
[332136021,1720984245479,-525.58,0.00025205,2]
[332136022,1720984245489,-226.824644,0.00025205,7]
[332136023,1720984245498,-500.0,0.00025205,2]
[332136024,1720984245508,-604.24829587,0.00025205,2]
[332136025,1720984245517,-510.67582826,0.00025205,2]
[332136026,1720984245526,-500.0,0.00025205,2]
[332136027,1720984245536,-151.0,0.00025205,7]
[332136028,1720984245545,-500.0,0.00025205,2]
[332136029,1720984245555,-151.0,0.00025205,7]
[332136030,1720984245564,-500.0,0.00025205,2]
[332136031,1720984245574,-500.0,0.00025205,2]
[332136032,1720984245584,-500.0,0.00025205,2]
[332136033,1720984245595,-500.0,0.00025205,2]
[332136034,1720984245604,-500.0,0.00025205,2]
[332136035,1720984245614,-500.0,0.00025205,2]
[332136036,1720984245623,-505.87,0.00025205,2]
[332136037,1720984245633,-896.61,0.00025205,2]
[332136038,1720984245643,-500.0,0.00025205,2]
[332136039,1720984245653,-500.0,0.00025205,2]
[332136040,1720984245663,-595.75,0.00025205,2]
[332136041,1720984245671,-151.0,0.00025205,7]
[332136042,1720984245681,-166.980573,0.00025205,7]
[332136043,1720984245690,-166.980573,0.00025205,7]
[332136044,1720984245700,-151.0,0.00025205,7]
[332136045,1720984245709,-500.0,0.00025205,2]
[332136046,1720984245718,-500.0,0.00025205,2]
[332136047,1720984245727,-500.0,0.00025205,2]
[332136048,1720984245736,-500.0,0.00025205,2]
[332136049,1720984245745,-500.0,0.00025205,2]
[332136050,1720984245755,-500.0,0.00025205,2]
[332136051,1720984245764,-500.0,0.00025205,2]
[332136052,1720984245774,-500.0,0.00025205,2]
[332136053,1720984245782,-500.0,0.00025205,2]
[332136054,1720984245791,-526.23226458,0.00025205,2]
[332136055,1720984245800,-613.54290489,0.00025205,2]
[332136056,1720984245809,-500.0,0.00025205,2]
[332136057,1720984245819,-7414.02,0.00025205,2]
[332136058,1720984245828,-500.0,0.00025205,2]
[332136059,1720984245837,-500.0,0.00025205,2]
[332136060,1720984245846,-500.0,0.00025205,2]
[332136061,1720984245856,-500.0,0.00025205,2]
[332136062,1720984245866,-500.0,0.00025205,2]
[332136063,1720984245875,-500.0,0.00025205,2]
[332136064,1720984245885,-151.0,0.00025205,7]
[332136065,1720984245894,-151.0,0.00025205,7]
[332136066,1720984245903,-197.21059328,0.00025205,2]
[332136067,1720984245912,-631.48965487,0.00025205,2]
[332136068,1720984245921,-717.62,0.00025205,4]
[332136069,1720984245931,-584.32755465,0.00025205,2]
[332136070,1720984245941,-1279.72,0.00025205,2]
[332136071,1720984245950,-284.561241,0.00025205,7]
[332136072,1720984245959,-384.117153,0.00025205,7]
[332136073,1720984245969,-284.561241,0.00025205,7]
[332136074,1720984245978,-384.117153,0.00025205,7]
[332136075,1720984245988,-500.0,0.00025205,2]
[332136076,1720984245997,-152.11310169,0.00025205,2]
[332136077,1720984246006,-866.27,0.00025205,2]
[332136078,1720984246015,-151.0,0.00025205,7]
[332136079,1720984246024,-500.0,0.00025205,2]
[332136081,1720984246034,-416.13484177,0.00025205,2]
[332136083,1720984246043,-281.603212,0.00025205,7]
[332136085,1720984246052,-645.05,0.00025205,2]
[332136088,1720984246061,-228.30208724,0.00025205,2]
[332136091,1720984246070,-4097.8,0.00025205,2]
[332136094,1720984246079,-500.0,0.00025205,2]
[332136095,1720984246156,-345.655,0.00025205,7]
[332136096,1720984246166,-151.0,0.00025205,7]
[332136097,1720984246175,-393.17481867,0.0002522,2]
[332136098,1720984246185,-151.0,0.00025249,7]
[332136099,1720984246194,-151.0,0.00025249,7]
[332136100,1720984246203,-151.0,0.00025249,7]
[332136101,1720984246213,-150.0,0.00025259,2]
[332136102,1720984246222,-150.0,0.00025259,2]
[332136103,1720984246232,-503.0,0.00025259,2]
[332136104,1720984246241,-151.0,0.00025274,7]
[332136106,1720984246250,-151.0,0.00025274,7]
[332136107,1720984246259,-282.621887,0.00025274,4]
[332136108,1720984246269,-151.0,0.00025274,7]
[332136109,1720984246278,-151.0,0.00025274,7]
[332136110,1720984246288,-221.526488,0.00025274,7]
[332136111,1720984246297,-221.526488,0.00025274,7]
[332136112,1720984246306,-304.76078271,0.00025274,3]
[332136113,1720984246315,-386.07753896,0.00025284,5]
[332136114,1720984246324,-184.293102,0.00025284,7]
[332136115,1720984246333,-151.0,0.00025284,7]
[332136116,1720984246343,-184.293102,0.00025284,7]
[332136117,1720984246352,-151.0,0.00025284,7]
[332136118,1720984246361,-151.0,0.00025284,7]
[332136119,1720984246371,-151.0,0.00025284,7]
[332136120,1720984246380,-151.0,0.00025284,7]
[332136121,1720984246389,-151.0,0.00025284,7]
[332136122,1720984246399,-151.0,0.00025284,7]
[332136123,1720984246408,-151.0,0.00025284,7]
[332136124,1720984246417,-151.0,0.00025284,7]
[332136125,1720984246426,-151.0,0.00025284,7]
[332136126,1720984246435,-226.824644,0.00025284,7]
[332136127,1720984246445,-226.824644,0.00025284,7]
[332136128,1720984246454,-151.0,0.00025284,7]
[332136129,1720984246464,-151.0,0.00025284,7]
[332136130,1720984246473,-151.0,0.00025284,7]
[332136131,1720984246483,-166.980573,0.00025284,7]
[332136132,1720984246492,-166.980573,0.00025284,7]
[332136133,1720984246501,-151.0,0.00025284,7]
[332136134,1720984246510,-151.0,0.00025284,7]
[332136135,1720984246520,-151.0,0.00025284,7]
[332136136,1720984246529,-221.526488,0.00025284,7]
[332136137,1720984246538,-221.526488,0.00025284,7]
[332136138,1720984246547,-151.0,0.00025284,7]
[332136139,1720984246557,-151.0,0.00025284,7]
[332136140,1720984246566,-284.561241,0.00025284,7]
[332136141,1720984246574,-384.117153,0.00025284,7]
[332136142,1720984246584,-284.561241,0.00025284,7]
[332136143,1720984246594,-384.117153,0.00025284,7]
[332136144,1720984246603,-151.0,0.00025284,7]
[332136145,1720984246612,-345.655,0.00025284,7]
[332136146,1720984246622,-156161.64126699,0.00025284,30]
[332136147,1720984246632,-150.112233,0.000253,10]
[332136148,1720984246642,-150.112233,0.000253,8]
[332136149,1720984246651,-150.112233,0.000253,8]
[332136150,1720984246660,-150.112233,0.000253,8]
[332136151,1720984246670,-150.112233,0.000253,8]
[332136152,1720984246680,-150.112233,0.000253,9]
[332136153,1720984246689,-177.1,0.00025378,2]
[332136154,1720984246698,-150.112233,0.000254,5]
[332136155,1720984246707,-150.112233,0.000254,9]
[332136156,1720984246717,-150.112233,0.000254,8]
[332136157,1720984246726,-150.112233,0.000254,6]
[332136158,1720984246735,-150.112233,0.000254,5]
[332136159,1720984246745,-150.112233,0.000254,9]
[332136160,1720984246754,-150.112233,0.000254,5]
[332136161,1720984246763,-157.80959748,0.0002546,2]
[332136162,1720984246772,-151.0,0.00025469,7]
[332136163,1720984246782,-184.293102,0.00025469,7]
[332136164,1720984246791,-151.0,0.00025469,7]
[332136165,1720984246800,-151.0,0.00025469,7]
[332136166,1720984246809,-184.293102,0.00025469,7]
[332136167,1720984246818,-180.285999,0.00025469,7]
[332136168,1720984246827,-151.0,0.00025469,7]
[332136169,1720984246836,-151.0,0.00025469,7]
[332136170,1720984246846,-151.0,0.00025469,7]
[332136171,1720984246855,-500.0,0.00025479,2]
[332136172,1720984246864,-500.0,0.00025479,2]
[332136173,1720984246874,-500.0,0.00025479,2]
[332136174,1720984246883,-535.06,0.00025479,2]
[332136175,1720984246892,-500.0,0.00025479,2]
[332136176,1720984246901,-500.0,0.00025479,2]
[332136177,1720984246911,-1500.0,0.00025479,2]
[332136178,1720984246920,-648.94,0.00025479,2]
[332136179,1720984246929,-500.0,0.00025479,2]
[332136180,1720984246938,-500.0,0.00025479,2]
[332136181,1720984246948,-500.0,0.00025479,2]
[332136182,1720984246958,-500.0,0.00025479,2]
[332136183,1720984246968,-522.53945808,0.00025479,2]
[332136184,1720984246977,-664.23,0.00025479,2]
[332136185,1720984246987,-500.0,0.00025479,2]
[332136186,1720984247001,-151.0,0.00025479,7]
[332136187,1720984247011,-246.446359,0.00025479,7]
[332136188,1720984247020,-500.44,0.00025479,2]
[332136189,1720984247030,-500.0,0.00025479,2]
[332136190,1720984247039,-500.0,0.00025479,2]
[332136191,1720984247050,-500.0,0.00025479,2]
[332136192,1720984247059,-500.0,0.00025479,2]
[332136193,1720984247068,-500.0,0.00025479,2]
[332136194,1720984247079,-500.0,0.00025479,2]
[332136195,1720984247088,-500.0,0.00025479,2]
[332136196,1720984247098,-500.0,0.00025479,2]
[332136197,1720984247107,-619.09,0.00025479,2]
[332136198,1720984247117,-500.0,0.00025479,2]
[332136199,1720984247127,-500.0,0.00025479,2]
[332136200,1720984247137,-500.0,0.00025479,2]
[332136201,1720984247147,-187.11205234,0.00025479,2]
[332136202,1720984247157,-500.0,0.00025479,2]
[332136203,1720984247167,-896.61,0.00025479,2]
[332136204,1720984247176,-500.0,0.00025479,2]
[332136205,1720984247186,-244.03252253,0.00025479,2]
[332136206,1720984247196,-549.58,0.00025479,2]
[332136207,1720984247205,-500.0,0.00025479,2]
[332136208,1720984247215,-500.0,0.00025479,2]
[332136209,1720984247224,-500.0,0.00025479,2]
[332136210,1720984247234,-500.0,0.00025479,2]
[332136211,1720984247244,-500.0,0.00025479,2]
[332136212,1720984247254,-500.0,0.00025479,2]
[332136213,1720984247263,-7414.02,0.00025479,2]
[332136214,1720984247273,-500.0,0.00025479,2]
[332136215,1720984247283,-500.0,0.00025479,2]
[332136216,1720984247292,-500.0,0.00025479,2]
[332136217,1720984247302,-717.62,0.00025479,4]
[332136218,1720984247312,-1279.72,0.00025479,2]
[332136219,1720984247322,-866.27,0.00025479,2]
[332136220,1720984247331,-500.0,0.00025479,2]
[332136221,1720984247341,-645.05,0.00025479,2]
[332136222,1720984247352,-4097.8,0.00025479,2]
[332136223,1720984247361,-184.293102,0.0002549,7]
[332136224,1720984247371,-151.0,0.0002549,7]
[332136225,1720984247380,-151.0,0.0002549,7]
[332136226,1720984247391,-184.293102,0.0002549,7]
[332136227,1720984247401,-151.0,0.0002549,7]
[332136228,1720984247411,-151.0,0.0002549,7]
[332136229,1720984247421,-151.0,0.0002549,7]
[332136230,1720984247430,-151.0,0.0002549,7]
[332136231,1720984247440,-151.0,0.0002549,7]
[332136232,1720984247450,-226.824644,0.0002549,7]
[332136233,1720984247459,-226.824644,0.0002549,7]
[332136234,1720984247468,-151.0,0.0002549,7]
[332136235,1720984247478,-151.0,0.0002549,7]
[332136236,1720984247487,-151.0,0.0002549,7]
[332136237,1720984247496,-166.980573,0.0002549,7]
[332136238,1720984247506,-166.980573,0.0002549,7]
[332136239,1720984247515,-151.0,0.0002549,7]
[332136240,1720984247524,-203.17385514,0.0002549,3]
[332136241,1720984247533,-151.0,0.0002549,7]
[332136242,1720984247542,-210.409752,0.0002549,7]
[332136243,1720984247551,-221.526488,0.0002549,7]
[332136244,1720984247560,-221.526488,0.0002549,7]
[332136245,1720984247570,-1527.26850556,0.000255,5]
[332136246,1720984247579,-49828.35284395,0.000255,2]
[332136247,1720984247596,-2004.05693496,0.000255,2]
[332136248,1720984247802,-19.54423782,0.00024657,2]
[332136249,1720984247916,-484.0461523,0.00024657,2]
[332136250,1720984247926,-200.5132499,0.00024657,2]
[332136251,1720984247936,-353.35256238,0.00024657,2]
[332136252,1720984247948,-146.64743762,0.00024657,2]
[332136253,1720984247958,-500.0,0.00024657,2]
[332136254,1720984247969,-260.62534725,0.00025121,2]
[332136255,1720984247978,-13344.76,0.00025195,3]
[332136256,1720984247987,-345.655,0.00025205,7]
[332136257,1720984248000,-345.655,0.00025284,7]
[332136258,1720984248009,-72467.55673339,0.000255,2]
[332136259,1720984248021,-2668.8935514,0.000255,2]
[332136277,1720984602006,9304.02627427,0.00014998,2]
[332136289,1720984764694,537.46637191,0.00014999,2]
[332136295,1720985114881,440.41891497,0.00014999,2]
[332136296,1720985116690,-1000.0,0.00018698,2]
[332136297,1720985120911,-54.28537001,0.00018698,2]
[332136298,1720985120947,-154.83806341,0.00018798,2]
[332136299,1720985120984,-531.23023325,0.00018899,2]
[332136300,1720985121019,-155.10844789,0.00018899,2]
[332136301,1720985121054,-104.53788544,0.00019165,2]
[332136311,1720985179675,-187.84280407,0.00016255,2]
[332136312,1720985179808,-208.92660568,0.00016255,2]
[332136316,1720985225137,-247.57733122,0.00019703,2]
[332136317,1720985225163,-484.50117327,0.00021096,2]
[332136318,1720985234099,-219.14090673,0.00021096,2]
[332136319,1720985234120,-240.27901755,0.00021917,2]
[332136320,1720985234142,-441.02487838,0.0002243,2]
[332136321,1720985236768,-58.97512162,0.0002243,2]
[332136322,1720985236790,-248.61290859,0.0002243,2]
[332136323,1720985236811,-155.14654511,0.00022579,2]
[332136324,1720985236831,-169.03211,0.00022855,2]
[332136325,1720985236852,-155.38792849,0.00022941,2]
[332136326,1720985236875,-636.3780598,0.00022942,2]
[332136327,1720985239203,-361.391691,0.00022942,2]
[332136328,1720985247179,-45.3281172,0.00022942,2]
[332136329,1720985247201,-157.10778422,0.00022943,2]
[332136330,1720985247223,-5.65041087,0.00023153,2]
[332136343,1720985350080,-182.583281,0.000176,2]
[332136345,1720985361095,-67.416719,0.000176,2]
[332136346,1720985361117,-98.751862,0.00018,2]
[332136347,1720985364078,-106.39645097,0.00018,2]
[332136382,1720985432416,-163.38169913,0.00023153,2]
[332136383,1720985432426,-169.03211,0.00023451,2]
[332136384,1720985432436,-169.03211,0.00023749,2]
[332136385,1720985432446,-169.03211,0.00024046,2]
[332136386,1720985432456,-1103.68607248,0.00024457,2]
[332136387,1720985432466,-300.0,0.00024556,2]
[332136388,1720985432475,-300.0,0.00024556,2]
[332136389,1720985432485,-395.53619326,0.00024557,2]
[332136390,1720985432495,-6442.28106318,0.00024557,3]
[332136391,1720985432508,-8380.54662934,0.00024557,3]
[332136453,1720985438641,-59905.93894862,0.00024557,3]
[332136457,1720985438651,-150.112233,0.000246,3]
[332136460,1720985438664,-500.0,0.00024646,2]
[332136464,1720985438674,-188.11712564,0.00024646,2]
[332136467,1720985438684,-339.38886504,0.00024646,2]
[332136470,1720985438694,-192.37477831,0.00024646,2]
[332136473,1720985438703,-68174.9870984,0.00024647,3]
[332136475,1720985438712,-506.50899771,0.00024657,2]
[332136477,1720985438721,-500.0,0.00024657,2]
[332136480,1720985438732,-500.0,0.00024657,2]
[332136482,1720985438741,-500.0,0.00024657,2]
[332136484,1720985438751,-500.0,0.00024657,2]
[332136486,1720985438760,-500.0,0.00024657,2]
[332136487,1720985438769,-500.0,0.00024657,2]
[332136490,1720985438780,-500.0,0.00024657,2]
[332136492,1720985438790,-500.0,0.00024657,2]
[332136494,1720985438799,-514.76384233,0.00024657,2]
[332136496,1720985438808,-500.0,0.00024657,2]
[332136497,1720985438817,-500.0,0.00024657,2]
[332136499,1720985438828,-500.0,0.00024657,2]
[332136501,1720985438837,-500.0,0.00024657,2]
[332136503,1720985438848,-500.0,0.00024657,2]
[332136505,1720985438858,-500.0,0.00024657,2]
[332136507,1720985438869,-500.0,0.00024657,2]
[332136509,1720985438878,-502.77136037,0.00024657,2]
[332136511,1720985438888,-500.0,0.00024657,2]
[332136513,1720985438898,-500.0,0.00024657,2]
[332136515,1720985438907,-500.0,0.00024657,2]
[332136517,1720985438917,-500.0,0.00024657,2]
[332136528,1720985439031,-225.48297625,0.00024657,2]
[332136529,1720985439041,-500.0,0.00024657,2]
[332136530,1720985439051,-500.0,0.00024657,2]
[332136531,1720985439061,-500.0,0.00024657,2]
[332136532,1720985439071,-500.0,0.00024657,2]
[332136533,1720985439080,-500.0,0.00024657,2]
[332136534,1720985439090,-500.0,0.00024657,2]
[332136535,1720985439099,-500.0,0.00024657,2]
[332136536,1720985439108,-500.0,0.00024657,2]
[332136537,1720985439117,-500.0,0.00024657,2]
[332136538,1720985439126,-500.0,0.00024657,2]
[332136539,1720985439135,-500.0,0.00024657,2]
[332136540,1720985439144,-500.0,0.00024657,2]
[332136541,1720985439153,-500.0,0.00024657,2]
[332136542,1720985439163,-500.0,0.00024657,2]
[332136543,1720985439172,-500.0,0.00024657,2]
[332136544,1720985439180,-500.0,0.00024657,2]
[332136545,1720985439189,-242.56428801,0.00024657,2]
[332136546,1720985439198,-500.0,0.00024657,2]
[332136548,1720985439208,-500.0,0.00024657,2]
[332136550,1720985439217,-500.0,0.00024657,2]
[332136552,1720985439226,-500.0,0.00024657,2]
[332136554,1720985439235,-500.0,0.00024657,2]
[332136556,1720985439244,-476.43685515,0.00024657,2]
[332136558,1720985439255,-500.0,0.00024657,2]
[332136560,1720985439264,-500.0,0.00024657,2]
[332136562,1720985439273,-500.0,0.00024657,2]
[332136565,1720985439282,-153.47185625,0.00024657,2]
[332136567,1720985439291,-500.0,0.00024657,2]
[332136569,1720985439301,-500.0,0.00024657,2]
[332136570,1720985439310,-500.0,0.00024657,2]
[332136572,1720985439319,-721.22,0.00024657,2]
[332136574,1720985439328,-507.5642997,0.00024657,2]
[332136576,1720985439338,-500.0,0.00024657,2]
[332136578,1720985439347,-500.0,0.00024657,2]
[332136580,1720985439360,-500.0,0.00024657,2]
[332136582,1720985439369,-500.0,0.00024657,2]
[332136584,1720985439378,-274.43205086,0.00024657,2]
[332136586,1720985439387,-500.0,0.00024657,2]
[332136588,1720985439395,-500.0,0.00024657,2]
[332136590,1720985439404,-500.0,0.00024657,2]
[332136592,1720985439413,-500.0,0.00024657,2]
[332136594,1720985439422,-567.68,0.00024657,2]
[332136596,1720985439431,-535.46,0.00024657,2]
[332136598,1720985439440,-618.13628608,0.00024657,2]
[332136600,1720985439449,-512.04936283,0.00024657,2]
[332136601,1720985439459,-500.0,0.00024657,2]
[332136603,1720985439468,-200.0,0.00024657,2]
[332136605,1720985439477,-649.3688754,0.00024657,2]
[332136607,1720985439486,-500.0,0.00024657,2]
[332136608,1720985439494,-507.98046624,0.00024657,2]
[332136609,1720985439502,-500.0,0.00024657,2]
[332136610,1720985439511,-500.0,0.00024657,2]
[332136612,1720985439520,-500.0,0.00024657,2]
[332136614,1720985439530,-518.34875942,0.00024657,2]
[332136616,1720985439540,-500.0,0.00024657,2]
[332136618,1720985439549,-500.0,0.00024657,2]
[332136620,1720985439559,-500.0,0.00024657,2]
[332136622,1720985439568,-500.0,0.00024657,2]
[332136624,1720985439578,-493.87121565,0.00024657,2]
[332136626,1720985439587,-500.0,0.00024657,2]
[332136628,1720985439597,-500.0,0.00024657,2]
[332136629,1720985439606,-500.0,0.00024657,2]
[332136630,1720985439616,-500.0,0.00024657,2]
[332136631,1720985439625,-500.0,0.00024657,2]
[332136632,1720985439634,-500.0,0.00024657,2]
[332136633,1720985439643,-500.0,0.00024657,2]
[332136634,1720985439653,-500.0,0.00024657,2]
[332136635,1720985439666,-512.62992828,0.00024657,2]
[332136636,1720985439676,-500.0,0.00024657,2]
[332136637,1720985439684,-500.0,0.00024657,2]
[332136638,1720985439694,-500.0,0.00024657,2]
[332136639,1720985439705,-500.0,0.00024657,2]
[332136640,1720985439714,-569.58498182,0.00024657,2]
[332136641,1720985439723,-500.0,0.00024657,2]
[332136642,1720985439734,-500.0,0.00024657,2]
[332136643,1720985439744,-500.0,0.00024657,2]
[332136644,1720985439753,-508.54615723,0.00024657,2]
[332136645,1720985439763,-500.0,0.00024657,2]
[332136646,1720985439771,-500.0,0.00024657,2]
[332136647,1720985439780,-500.0,0.00024657,2]
[332136648,1720985439791,-549.81,0.00024657,2]
[332136649,1720985439800,-500.0,0.00024657,2]
[332136650,1720985439809,-500.0,0.00024657,2]
[332136651,1720985439818,-500.0,0.00024657,2]